bitfinex-derivatives/quotes_SOLF0:USTF0_20251129
["timestamp","ask_amount","ask_price","bid_price","bid_amount"]
[1764439485436,5.45727165,136.11,136.09,0.05415337]
[1764439485737,3.23,136.1,136.01,3.19]
[1764439485933,3.23,136.02,135.98,3.19]
[1764439486125,3.23,136.02,135.99,6.6163]
[1764439486537,3.23,136.0,135.91,3.19]
[1764439486746,0.05370593,135.97,135.96,3.19]
[1764439486926,0.05370593,135.97,135.95,3.19]
[1764439489443,3.17370593,135.97,135.94,9.79366413]
[1764439489950,0.05370593,135.97,135.95,3.12]
[1764439490540,0.05370593,135.97,135.95,5.29474459]
[1764439490741,0.05370593,135.97,135.96,3.12]
[1764439494346,0.05370593,135.97,135.95,3.12]
[1764439495051,0.05370593,135.97,135.96,2.17474459]
[1764439495953,3.17370593,135.97,135.94,3.17486413]
[1764439496254,3.17370593,135.97,135.94,0.05486413]
[1764439498248,3.17370593,135.97,135.94,3.17486413]
[1764439498449,0.05370593,135.97,135.96,3.12]
[1764439498649,0.05370593,135.97,135.96,2.17474459]
[1764439498847,0.05370593,135.97,135.96,5.29474459]
[1764439500638,0.05370593,135.97,135.96,3.12]
[1764439501754,3.17370593,135.97,135.94,9.79346413]
[1764439502253,0.05370593,135.97,135.95,3.12]
[1764439505953,0.05370593,135.97,135.96,13.1436119]
[1764439506350,0.05370593,135.97,135.96,10.0236119]
[1764439506545,0.05370593,135.97,135.96,6.6179]
[1764439506753,0.05370593,135.97,135.96,9.7379]
[1764439509350,3.17370593,135.97,135.96,6.6179]
[1764439509655,3.17370593,135.97,135.94,0.05486413]
[1764439513957,3.12,135.96,135.89,3.12]
[1764439514259,3.12,135.94,135.89,3.12]
[1764439514958,0.05317702,135.93,135.9,0.05084096]
[1764439515260,3.17317702,135.93,135.9,0.05084096]
[1764439516864,3.12,135.92,135.9,0.05084096]
[1764439517062,3.12,135.92,135.84,6.5257119]
[1764439517264,3.12,135.92,135.84,3.12]
[1764439517466,3.12,135.92,135.84,6.5257119]
[1764439517863,3.12,135.91,135.85,3.12]
[1764439518060,3.17137811,135.89,135.85,3.12]
[1764439518262,3.17137811,135.89,135.76,103.094]
[1764439518263,3.17137811,135.89,135.83,6.5257119]
[1764439518463,0.05484479,135.87,135.86,3.12]
[1764439518652,5.38724788,135.96,135.77,1.28075373]
[1764439518653,0.05097012,135.88,135.87,3.4057119]
[1764439518857,3.08807814,135.89,135.85,6.5757119]
[1764439519054,3.08807814,135.89,135.86,3.06]
[1764439519660,3.08807814,135.89,135.85,6.4657119]
[1764439520972,3.08807814,135.89,135.83,6.4657119]
[1764439521162,0.04743104,135.87,135.84,3.06]
[1764439522073,0.04743104,135.87,135.85,3.06]
[1764439528971,3.08743104,135.87,135.82,6.4657119]
[1764439529270,6.6214,135.89,135.83,3.06]
[1764439529271,3.09198315,135.86,135.83,3.06]
[1764439529774,0.05198315,135.86,135.83,3.06]
[1764439529975,3.09198315,135.86,135.83,3.06]
[1764439530677,3.09198315,135.86,135.81,9.685]
[1764439531175,3.09198315,135.86,135.82,3.06]
[1764439533374,121.0,135.85,135.84,3.06]
[1764439533674,0.05198315,135.86,135.83,3.4057119]
[1764439533675,3.04,135.92,135.86,3.06]
[1764439533974,5.39941688,135.91,135.88,3.06]
[1764439534180,5.40139151,135.94,135.8,3.4057119]
[1764439534181,3.04,135.95,135.9,3.06]
[1764439534369,5.40192532,135.94,135.9,3.06]
[1764439534566,3.04,135.95,135.9,3.06]
[1764439534761,0.04752467,135.94,135.92,3.06]
[1764439546583,0.04752467,135.94,135.92,6.4657119]
[1764439546781,0.04752467,135.94,135.93,9.6793]
[1764439546988,3.04,135.99,135.94,3.06]
[1764439547289,3.04,135.99,135.95,3.06]
[1764439547681,3.04,136.02,135.95,3.06]
[1764439547976,0.05184883,136.0,135.97,3.10921751]
[1764439553300,3.14,136.07,135.99,3.25]
[1764439553488,3.14,136.07,136.01,3.25]
[1764439553689,3.14,136.07,136.01,6.6152]
[1764439554180,0.04754261,136.05,136.03,0.04854375]
[1764439555694,3.14,136.13,136.05,2.25]
[1764439555890,3.14,136.1,136.02,2.25]
[1764439556087,3.14,136.1,136.02,5.65446577]
[1764439556294,3.14,136.1,136.03,2.25]
[1764439556689,0.05129345,136.08,136.05,2.296979]
[1764439559302,3.40446577,136.07,135.99,2.25]
[1764439559490,3.14,136.06,135.99,2.25]
[1764439560196,3.14,136.06,136.0,2.25]
[1764439560395,0.048967,136.04,136.02,2.29779445]
[1764439560599,0.04893932,136.04,136.02,2.29779445]
[1764439562297,0.04893932,136.04,136.02,8.91239445]
[1764439563002,0.04893932,136.04,136.02,0.04779445]
[1764439563199,0.04893932,136.04,136.02,2.29779445]
[1764439565902,3.18893932,136.04,136.02,0.04779445]
[1764439566404,0.04893932,136.04,136.03,2.25]
[1764439566607,0.04893932,136.04,136.02,0.04779445]
[1764439566807,0.04893932,136.04,136.02,2.29779445]
[1764439570410,0.04893932,136.04,136.02,8.91239445]
[1764439570611,0.04893932,136.04,136.03,2.25]
[1764439571206,3.14,136.1,136.05,2.25]
[1764439572212,0.04959808,136.09,136.06,2.29979401]
[1764439575011,3.18959808,136.09,136.06,0.04979401]
[1764439575428,9.80139808,136.09,136.06,0.04979401]
[1764439575723,3.14,136.08,136.06,0.04979401]
[1764439578327,0.04959808,136.09,136.07,2.25]
[1764439581230,3.19959808,136.09,136.06,0.04979401]
[1764439582128,3.19959808,136.09,136.06,2.29979401]
[1764439582329,0.04959808,136.09,136.06,2.29979401]
[1764439584632,0.04959808,136.09,136.07,2.25]
[1764439590230,3.15,136.12,136.1,0.45040192]
[1764439590447,5.4279133,136.11,136.07,2.25]
[1764439590730,3.15,136.13,136.07,2.25]
[1764439590936,8.57783992,136.12,136.09,2.25]
[1764439591136,5.42783992,136.11,136.09,2.29903041]
[1764439591332,0.04955035,136.12,136.09,2.29903041]
[1764439591529,0.04955035,136.12,136.11,2.25]
[1764439592736,5.43430701,136.17,136.11,2.25]
[1764439592936,5.43430701,136.16,136.14,2.25]
[1764439593137,3.15,136.18,136.14,2.25]
[1764439593331,5.436675,136.17,136.14,2.25]
[1764439593637,3.20385711,136.17,136.14,2.29907456]
[1764439595529,3.20385711,136.17,136.14,0.04907456]
[1764439595736,5.43295317,136.16,136.14,0.04907456]
[1764439595929,3.20385711,136.17,136.14,0.04907456]
[1764439596128,5.43311815,136.16,136.14,0.04907456]
[1764439596329,3.20385711,136.17,136.14,2.29907456]
[1764439597234,0.05385711,136.17,136.14,2.29907456]
[1764439601335,3.20385711,136.17,136.14,2.29907456]
[1764439601541,3.20385711,136.17,136.14,0.04907456]
[1764439602439,3.15,136.16,136.14,2.29907456]
[1764439602641,3.15,136.16,136.14,0.04907456]
[1764439609945,5.186649,136.15,136.14,0.04907456]
[1764439611350,3.06385711,136.17,136.14,0.04907456]
[1764439611543,5.24050611,136.17,136.14,0.04907456]
[1764439611738,3.01,136.16,136.14,0.04907456]
[1764439612048,0.05385711,136.17,136.14,2.29907456]
[1764439612949,3.06385711,136.17,136.14,2.29907456]
[1764439620762,3.39746489,136.16,136.14,0.04907456]
[1764439620966,3.39746489,136.16,136.09,8.8611]
[1764439620967,3.01,136.14,136.09,2.25]
[1764439621855,3.05743282,136.13,136.1,0.04830426]
[1764439623759,3.05743282,136.13,136.1,2.34830426]
[1764439626071,0.04743282,136.13,136.1,2.34830426]
[1764439627366,0.04743282,136.13,136.11,8.9102]
[1764439631381,0.04743282,136.13,136.11,2.3]
[1764439632366,0.04743282,136.13,136.11,8.9104]
[1764439632564,0.04743282,136.13,136.12,2.3]
[1764439632969,3.01,136.16,136.12,2.3]
[1764439633271,3.01,136.16,136.1,0.04830426]
[1764439633471,3.01,136.14,136.1,0.04830426]
[1764439633670,3.01,136.12,136.1,0.04830426]
[1764439633865,3.05769837,136.12,136.1,0.04830426]
[1764439634769,8.47284607,136.11,136.1,0.04830426]
[1764439636269,3.01,136.11,136.1,0.04830426]
[1764439636976,8.46770985,136.11,136.1,0.04830426]
[1764439639063,0.04769837,136.12,136.1,5.74576915]
[1764439639375,0.04769837,136.12,136.11,2.3]
[1764439642166,6.6079,136.17,136.11,2.3]
[1764439642372,3.1,136.19,136.13,2.25]
[1764439642573,3.1,136.17,136.13,2.25]
[1764439643279,3.39746489,136.2,136.13,2.25]
[1764439643280,3.1,136.15,136.14,0.04836456]
[1764439644776,8.55931165,136.15,136.14,0.04836456]
[1764439649477,5.45931165,136.15,136.14,2.29836456]
[1764439649679,5.45931165,136.15,136.14,0.04836456]
[1764439650381,3.14785615,136.16,136.14,0.04836456]
[1764439651282,8.56037751,136.15,136.14,0.04836456]
[1764439651778,3.1,136.14,136.09,2.25]
[1764439651980,8.56037751,136.13,136.09,2.25]
[1764439652275,3.1,136.13,136.09,8.8613]
[1764439652481,3.1,136.13,136.1,2.3]
[1764439652776,3.14994119,136.13,136.1,2.35413904]
[1764439657183,0.04994119,136.13,136.1,2.35413904]
[1764439657982,3.14994119,136.13,136.1,2.35413904]
[1764439666880,0.04994119,136.13,136.1,8.96473904]
[1764439667489,0.04994119,136.13,136.11,2.3]
[1764439670193,3.1,136.15,136.13,0.45005881]
[1764439670484,5.46693512,136.14,136.11,2.3]
[1764439670689,3.15,136.15,136.11,2.3]
[1764439670892,5.46722939,136.14,136.11,2.3]
[1764439671088,3.15,136.15,136.11,2.3]
[1764439671388,8.66690171,136.14,136.11,2.3]
[1764439671586,3.19976582,136.14,136.11,2.3]
[1764439673188,3.19976582,136.14,136.1,0.05413904]
[1764439673390,3.15,136.12,136.1,2.35413904]
[1764439675894,3.15,136.12,136.1,0.05413904]
[1764439678287,8.61298308,136.11,136.1,0.05413904]
[1764439680793,6.72479556,136.14,136.1,2.35413904]
[1764439681099,3.15,136.12,136.1,2.35413904]
[1764439682296,3.15,136.12,136.1,0.05413904]
[1764439683195,5.46672762,136.11,136.1,0.05413904]
[1764439683401,8.61672762,136.11,136.1,0.05413904]
[1764439683891,3.15,136.11,136.1,0.05413904]
[1764439688102,8.61389418,136.11,136.1,0.05413904]
[1764439691703,10.78986842,136.11,136.1,0.05413904]
[1764439693003,10.78986842,136.11,136.05,11.08917424]
[1764439693004,3.15,136.1,136.05,6.6132]
[1764439693210,3.15,136.08,136.04,2.3]
[1764439693602,3.15,136.08,136.04,8.9138]
[1764439693805,3.15,136.08,136.05,2.3]
[1764439694006,3.19666308,136.08,136.05,2.34871113]
[1764439696805,0.04666308,136.08,136.06,2.3]
[1764439697199,0.04666308,136.08,136.06,8.9128]
[1764439697605,0.04666308,136.08,136.07,2.3]
[1764439700504,3.08666308,136.08,136.06,8.9128]
[1764439700704,0.04666308,136.08,136.06,8.9128]
[1764439700906,3.04,136.1,136.08,0.45333692]
[1764439701104,3.04,136.1,136.06,8.9128]
[1764439701810,0.05037628,136.09,136.06,8.9128]
[1764439702114,3.09037628,136.09,136.06,8.9128]
[1764439703517,0.05037628,136.09,136.07,2.3]
[1764439703905,3.09037628,136.09,136.07,2.3]
[1764439706819,3.09037628,136.09,136.06,6.6128]
[1764439708216,3.09037628,136.09,136.05,0.04871113]
[1764439708217,3.04,136.08,136.05,0.04871113]
[1764439709019,3.04,136.08,136.05,2.34871113]
[1764439710507,3.09037628,136.09,136.05,2.34871113]
[1764439710707,3.09037628,136.09,136.06,2.3]
[1764439715023,3.09037628,136.09,136.05,2.34871113]
[1764439717022,3.04,136.07,136.05,0.04871113]
[1764439725623,2.17597424,136.06,136.05,0.04871113]
[1764439725932,10.67025886,136.06,136.05,0.04871113]
[1764439728736,3.04,136.05,136.01,6.6151]
[1764439729339,3.04,136.05,136.01,8.9151]
[1764439729633,3.28,136.03,136.02,0.04676311]
[1764439735640,3.33311509,136.04,136.02,8.96156311]
[1764439735845,0.05311509,136.04,136.03,2.3]
[1764439747858,3.33311509,136.04,136.03,2.3]
[1764439751363,0.05311509,136.04,136.03,2.3]
[1764439751663,3.33311509,136.04,136.02,0.04676311]
[1764439756873,8.74863005,136.03,136.02,0.04676311]
[1764439757069,3.28,136.03,136.02,0.04676311]
[1764439759380,8.75087726,136.03,136.02,0.04676311]
[1764439760279,3.24,136.02,135.98,8.9266]
[1764439760873,3.24,136.02,135.99,2.31]
[1764439761279,3.24,136.02,135.99,2.36360599]
[1764439764877,3.24,136.02,135.99,0.05360599]
[1764439765379,3.24,136.0,135.99,0.05360599]
[1764439765580,3.24,135.99,135.93,2.31]
[1764439766476,0.05247464,135.97,135.95,0.05372968]
[1764439766677,3.24,135.96,135.95,0.05372968]
[1764439777486,3.24,135.96,135.92,121.0]
[1764439778582,3.24,135.96,135.93,0.04977628]
[1764439791296,3.24,135.96,135.93,2.45977628]
[1764439791491,3.24,135.96,135.93,5.862691]
[1764439791898,3.24,135.96,135.94,2.41]
[1764439793998,3.24,135.96,135.93,5.862691]
[1764439795704,3.24,135.96,135.93,0.04977628]
[1764439797304,9.8581,135.96,135.93,0.04977628]
[1764439797500,6.6181,135.96,135.93,0.04977628]
[1764439797705,3.08,135.95,135.93,0.04977628]
[1764439798903,6.6181,135.96,135.93,5.862691]
[1764439798904,3.08,135.96,135.93,5.862691]
[1764439799308,3.08,135.96,135.93,3.452691]
[1764439800810,3.08,135.96,135.93,0.04977628]
[1764439801407,6.6182,135.96,135.93,0.04977628]
[1764439801601,3.08,135.95,135.93,0.04977628]
[1764439804510,3.08,135.95,135.93,2.23072648]
[1764439811815,8.56699784,135.94,135.93,2.23072648]
[1764439813204,8.56699784,135.94,135.93,0.04977628]
[1764439817618,3.08,135.96,135.93,2.45977628]
[1764439817819,3.08,135.96,135.95,2.1809502]
[1764439818010,8.56624359,135.96,135.95,2.1809502]
[1764439818926,5.48624359,135.96,135.95,4.5909502]
[1764439819422,14.13727822,135.96,135.95,2.1809502]
[1764439819814,3.21,135.95,135.93,0.04977628]
[1764439820120,3.21,135.95,135.94,2.1809502]
[1764439820421,8.69994743,135.95,135.94,2.1809502]
[1764439827232,5.48994743,135.95,135.94,4.5909502]
[1764439827433,3.21,135.96,135.94,4.5909502]
[1764439827633,3.21,135.96,135.95,2.1809502]
[1764439827935,8.65492752,135.96,135.95,2.1809502]
[1764439832338,3.21,135.95,135.94,2.1809502]
[1764439839443,8.68047943,135.95,135.94,2.1809502]
[1764439839940,5.99118621,135.95,135.94,121.0]
[1764439840144,11.40759049,135.95,135.94,121.0]
[1764439842541,19.56262023,135.95,135.94,111.8633335]
[1764439842750,21.72568604,135.95,135.94,105.2033335]
[1764439846147,12.88759049,135.95,135.94,105.2033335]
[1764439848444,12.88759049,135.95,135.94,89.2033335]
[1764439851048,11.40759049,135.95,135.94,89.2033335]
[1764439852647,12.88759049,135.95,135.94,89.2033335]
[1764439854356,19.64782348,135.95,135.94,89.2033335]
[1764439855363,11.40759049,135.95,135.94,89.2033335]
[1764439855660,20.24568604,135.95,135.94,89.2033335]
[1764439855959,20.24568604,135.95,135.94,29.4330335]
[1764439856157,20.24568604,135.95,135.94,17.1473335]
[1764439857364,11.40759049,135.95,135.94,17.1473335]
[1764439860349,11.40759049,135.95,135.94,50.1473335]
[1764439861459,20.24568604,135.95,135.94,50.1473335]
[1764439861655,20.24568604,135.95,135.94,38.7570335]
[1764439862953,20.24568604,135.95,135.94,27.5702335]
[1764439863152,6.6189,135.94,135.93,0.04977628]
[1764439863448,21.56997596,135.94,135.93,0.04977628]
[1764439864058,21.56997596,135.94,135.93,3.33977628]
[1764439864263,8.19759049,135.94,135.93,3.33977628]
[1764439866867,10.85338975,135.94,135.93,3.33977628]
[1764439868061,6.6181,135.96,135.94,3.29]
[1764439868363,5.43744525,135.95,135.94,3.29]
[1764439875666,5.43744525,135.95,135.93,3.33977628]
[1764439875966,5.43744525,135.94,135.93,3.33977628]
[1764439882268,6.75456641,135.96,135.93,3.33977628]
[1764439882472,0.05247464,135.97,135.94,3.28]
[1764439883772,6.75456641,136.0,135.96,3.28]
[1764439884072,8.83809555,136.02,135.98,3.28]
[1764439884073,5.39851388,136.01,135.98,3.28]
[1764439884378,6.75456641,136.02,135.98,3.28]
[1764439884571,5.39584805,136.01,135.98,3.28]
[1764439884769,6.75456641,136.02,135.98,3.28]
[1764439884979,5.45011837,136.01,136.0,3.28]
[1764439885572,0.0535303,136.01,136.0,3.28]
[1764439885871,5.45011837,136.01,136.0,3.28]
[1764439886071,0.0535303,136.01,136.0,3.28]
[1764439889874,12.00046435,136.06,136.0,3.28]
[1764439890279,9.7534,136.06,136.0,3.28]
[1764439890483,3.14,136.05,136.0,3.28]
[1764439890874,0.05250168,136.04,136.0,3.28]
[1764439893287,9.7514,136.1,136.02,3.28]
[1764439893779,3.19,136.09,136.02,3.28]
[1764439894384,3.19,136.09,136.01,3.40835355]
[1764439894385,0.05114741,136.07,136.05,3.28]
[1764439894580,3.24114741,136.07,136.05,3.28]
[1764439894776,3.24114741,136.07,136.04,3.33103682]
[1764439897585,3.19,136.06,136.04,0.05103682]
[1764439899484,6.59835355,136.05,136.04,0.05103682]
[1764439908193,11.99169216,136.05,136.04,0.05103682]
[1764439908694,6.59835355,136.05,136.04,0.05103682]
[1764439909293,11.99169216,136.05,136.04,0.05103682]
[1764439914393,8.46333861,136.05,136.04,0.05103682]
[1764439914587,3.07,136.05,136.04,0.05103682]
[1764439914787,8.46333861,136.05,136.04,0.05103682]
[1764439914994,3.07,136.05,136.04,0.05103682]
[1764439915194,8.46333861,136.05,136.04,0.05103682]
[1764439915391,3.07,136.05,136.04,0.05103682]
[1764439915589,8.46333861,136.05,136.04,0.05103682]
[1764439915792,3.07,136.05,136.04,0.05103682]
[1764439915989,8.46333861,136.05,136.04,0.05103682]
[1764439924706,5.39333861,136.05,136.04,3.34103682]
[1764439929211,10.80383011,136.05,136.04,3.34103682]
[1764439930599,10.80485185,136.05,136.04,3.34103682]
[1764439931704,0.05114741,136.07,136.04,5.51933899]
[1764439932014,0.05114741,136.07,136.05,2.03]
[1764439932506,0.05114741,136.07,136.04,2.22933899]
[1764439932507,3.07,136.05,136.04,0.05103682]
[1764439933106,3.07,136.05,136.0,2.03]
[1764439933403,8.93286858,136.06,136.0,2.03]
[1764439933404,3.07,136.03,136.0,2.03]
[1764439934109,3.12352048,136.03,136.0,2.08434223]
[1764439937014,5.24830217,136.02,136.0,2.08434223]
[1764439937603,3.07,136.02,136.0,2.08434223]
[1764439940419,5.31830217,136.01,136.0,0.05434223]
[1764439940917,3.14,136.0,135.94,4.19830217]
[1764439941105,3.14,135.97,135.94,2.02]
[1764439941704,3.14,135.95,135.91,2.02]
[1764439941909,3.14,135.93,135.91,2.02]
[1764439942119,3.18847843,135.93,135.92,0.05534451]
[1764439943806,8.56807082,135.93,135.92,0.05534451]
[1764439944213,3.18847843,135.93,135.92,0.05534451]
[1764439946615,0.04847843,135.93,135.92,2.07534451]
[1764439947217,0.04847843,135.93,135.92,0.05534451]
[1764439948116,3.18847843,135.93,135.92,0.05534451]
[1764439950721,3.14,135.92,135.83,2.08]
[1764439950929,3.14,135.89,135.83,2.08]
[1764439951125,3.14,135.89,135.86,4.25830217]
[1764439951321,3.14,135.91,135.87,2.08]
[1764439951725,3.18779148,135.9,135.88,0.04625476]
[1764439957043,3.14,135.89,135.88,0.04625476]
[1764439957541,0.04779148,135.9,135.88,2.12625476]
[1764439958431,0.04779148,135.9,135.89,4.25830217]
[1764439959938,0.04779148,135.9,135.89,2.08]
[1764439960238,3.18779148,135.9,135.88,2.12625476]
[1764439961240,3.18779148,135.9,135.88,0.04625476]
[1764439963239,0.04779148,135.9,135.88,2.12625476]
[1764439963942,3.18779148,135.9,135.88,2.12625476]
[1764439965747,0.04779148,135.9,135.88,2.12625476]
[1764439968546,3.18779148,135.9,135.88,0.04625476]
[1764439969448,5.36609365,135.9,135.88,0.04625476]
[1764439969750,3.01,135.89,135.85,2.08]
[1764439970246,3.01,135.87,135.83,2.08]
[1764439970751,3.06161503,135.86,135.84,0.0513406]
[1764439971650,3.01,135.85,135.84,0.0513406]
[1764439971949,3.01,135.85,135.78,4.30830217]
[1764439972148,34.18441677,135.9,135.79,2.13]
[1764439972149,3.01,135.83,135.79,2.13]
[1764439972352,3.01,135.83,135.78,4.30830217]
[1764439972546,3.01,135.83,135.78,2.13]
[1764439972752,3.01,135.79,135.63,2.13]
[1764439973057,0.05621136,135.72,135.7,0.03464177]
[1764439973353,3.06198717,135.72,135.7,0.03464177]
[1764439973545,3.01,135.71,135.7,0.03464177]
[1764439973947,3.01,135.7,135.61,2.13]
[1764439974250,3.01,135.7,135.65,2.17830217]
[1764439974551,3.01,135.7,135.66,4.30830217]
[1764439974744,3.01,135.7,135.67,2.13]
[1764439974945,0.05413047,135.7,135.67,2.13]
[1764439975149,0.05413047,135.7,135.68,2.13]
[1764439976254,0.05413047,135.7,135.69,4.30830217]
[1764439976448,2.17830217,135.74,135.69,4.30830217]
[1764439976449,0.05236382,135.71,135.69,4.30830217]
[1764439976648,0.05236382,135.71,135.69,2.13]
[1764439977951,3.06236382,135.71,135.68,2.13]
[1764439978349,3.06236382,135.71,135.65,4.30830217]
[1764439978655,3.01,135.69,135.65,2.13]
[1764439978957,3.01,135.69,135.63,4.30830217]
[1764439979146,0.05537897,135.67,135.64,2.13]
[1764439980659,3.06537897,135.67,135.61,8.7647]
[1764439980962,3.06537897,135.67,135.63,2.13]
[1764439981345,3.01,135.66,135.61,4.30830217]
[1764439981549,0.04834232,135.65,135.64,2.13]
[1764439981759,3.01,135.65,135.58,8.7661]
[1764439981968,3.01,135.64,135.58,4.30830217]
[1764439982255,0.05471492,135.62,135.61,2.13]
[1764439982460,5.32844456,135.72,135.62,2.08]
[1764439982461,3.01,135.69,135.62,2.08]
[1764439982652,3.01,135.69,135.64,2.17830217]
[1764439982960,3.01,135.69,135.65,0.08]
[1764439983254,3.01,135.65,135.55,3.61287127]
[1764439983460,6.75456641,135.74,135.59,0.04643285]
[1764439983461,0.05188429,135.61,135.59,0.04643285]
[1764439983662,3.01,135.66,135.61,2.17830217]
[1764439983865,3.01,135.66,135.62,2.17830217]
[1764439984051,3.01,135.66,135.6,2.17830217]
[1764439984761,2.17830217,135.67,135.55,10.25027127]
[1764439984762,3.06294863,135.64,135.62,0.05599519]
[1764439985060,0.05294863,135.64,135.63,0.08]
[1764439985458,0.05294863,135.64,135.63,2.25830217]
[1764439985858,3.01,135.69,135.64,0.08]
[1764439986654,3.01,135.67,135.59,0.08]
[1764439986856,3.05702625,135.64,135.62,0.05043611]
[1764439987250,3.01,135.62,135.55,0.28287127]
[1764439987459,3.01,135.59,135.55,0.28287127]
[1764439988153,3.01,135.59,135.56,0.05371382]
[1764439988358,0.05659288,135.58,135.56,0.05371382]
[1764439989064,3.01,135.65,135.57,3.28]
[1764439989959,3.01,135.65,135.6,0.0524592]
[1764439990149,0.05077591,135.62,135.61,3.28]
[1764439990354,0.05077591,135.62,135.6,0.0524592]
[1764439990762,0.05077591,135.62,135.6,3.3324592]
[1764439991351,9.6411,135.69,135.6,3.3324592]
[1764439991552,3.01,135.68,135.6,3.28]
[1764439992453,0.05580991,135.65,135.63,3.32971624]
[1764439992655,0.05099553,135.65,135.63,3.33342054]
[1764439992856,3.01,135.71,135.63,3.33342054]
[1764439993867,0.05434201,135.68,135.63,3.33342054]
[1764439994168,3.06434201,135.68,135.63,3.33342054]
[1764439994367,3.06434201,135.68,135.63,0.05342054]
[1764439995962,9.69594201,135.68,135.63,0.05342054]
[1764439996155,3.01,135.67,135.63,0.05342054]
[1764439996759,3.01,135.65,135.63,0.05342054]
[1764439998363,3.01,135.65,135.56,3.28]
[1764439999273,0.05045587,135.62,135.59,0.05583192]
[1764439999664,3.36045587,135.62,135.59,0.05583192]
[1764440000762,3.31,135.61,135.55,0.28287127]
[1764440001260,3.31,135.58,135.47,3.19]
[1764440001671,0.04902149,135.54,135.51,0.05301437]
[1764440001872,0.04902149,135.54,135.51,3.24301437]
[1764440002074,0.04902149,135.54,135.51,4.72301437]
[1764440002276,0.04902149,135.54,135.52,3.19]
[1764440002877,3.31,135.61,135.53,3.19]
[1764440003680,9.9432,135.65,135.57,3.19]
[1764440003874,3.31,135.65,135.57,3.19]
[1764440004078,11.49157125,135.69,135.57,3.19]
[1764440004266,9.9418,135.68,135.57,3.19]
[1764440004873,0.05663758,135.64,135.61,3.24165151]
[1764440005671,9.9403,135.71,135.62,3.19]
[1764440005980,15.2040531,135.78,135.66,3.19]
[1764440006184,9.9371,135.78,135.66,3.19]
[1764440006569,3.31,135.77,135.66,3.19]
[1764440006768,0.04824864,135.73,135.7,0.05251338]
[1764440006982,0.04824864,135.73,135.7,3.24251338]
[1764440010488,5.2669531,135.8,135.7,3.24251338]
[1764440010677,5.2669531,135.8,135.7,3.19]
[1764440011080,3.31,135.81,135.7,3.19]
[1764440011273,8.63808916,135.8,135.7,3.19]
[1764440011483,0.05433214,135.76,135.74,0.05488154]
[1764440013379,0.05433214,135.76,135.74,3.24488154]
[1764440013576,5.34280588,135.81,135.74,3.24488154]
[1764440013781,5.34328438,135.83,135.74,3.19]
[1764440013975,3.31,135.84,135.74,3.19]
[1764440014290,5.35121975,135.83,135.74,3.19]
[1764440014486,3.31,135.84,135.74,3.19]
[1764440014786,0.05579991,135.8,135.78,0.04658011]
[1764440015986,3.36579991,135.8,135.78,0.04658011]
[1764440016285,0.05579991,135.8,135.78,0.04658011]
[1764440017473,0.05579991,135.8,135.78,3.23658011]
[1764440017982,5.35754539,135.87,135.78,3.23658011]
[1764440018186,5.35754539,135.86,135.79,3.19]
[1764440018378,3.31,135.88,135.79,3.19]
[1764440018579,5.35268561,135.87,135.79,3.19]
[1764440018782,3.31,135.88,135.79,3.19]
[1764440019076,0.05158172,135.85,135.83,3.19]
[1764440023486,0.05158172,135.85,135.82,0.04732525]
[1764440023687,0.05158172,135.85,135.82,3.23732525]
[1764440027195,3.36158172,135.85,135.82,0.04732525]
[1764440029384,9.98508172,135.85,135.82,0.04732525]
[1764440029585,3.18,135.84,135.82,0.04732525]
[1764440029793,0.05158172,135.85,135.82,3.28732525]
[1764440029988,3.23158172,135.85,135.82,0.04732525]
[1764440032691,9.85518172,135.85,135.82,0.04732525]
[1764440032898,3.18,135.84,135.82,0.04732525]
[1764440034501,3.23158172,135.85,135.82,0.04732525]
[1764440036297,9.85518172,135.85,135.82,0.04732525]
[1764440036501,3.18,135.84,135.82,0.04732525]
[1764440036902,3.18,135.83,135.75,3.24]
[1764440037495,3.18,135.83,135.76,3.24]